bitfinex/quotes_BTCUSD_20241229
["timestamp","ask_amount","ask_price","bid_price","bid_amount"]
[1735443303435,0.10398632,95399.0,95386.0,0.0881515]
[1735443303640,2.003852,95398.0,95386.0,0.0881515]
[1735443304406,1.973476,95398.0,95386.0,0.0881515]
[1735443304610,1.973476,95398.0,95386.0,0.0831515]
[1735443305166,0.10398632,95399.0,95386.0,0.0861515]
[1735443305363,0.00017596,95401.0,95386.0,0.0861515]
[1735443305574,2.003852,95400.0,95386.0,0.0831515]
[1735443305796,2.003852,95400.0,95386.0,0.0871515]
[1735443306001,2.003852,95400.0,95386.0,0.0831515]
[1735443306201,0.01644863,95397.0,95386.0,0.0831515]
[1735443306443,2.003852,95396.0,95386.0,0.0831515]
[1735443306619,2.003852,95396.0,95386.0,0.0871515]
[1735443307800,2.003852,95396.0,95386.0,0.0831515]
[1735443308216,2.003852,95396.0,95386.0,0.0861515]
[1735443308445,2.003852,95396.0,95386.0,0.0831515]
[1735443308600,2.07897146,95396.0,95386.0,0.0881515]
[1735443308805,0.07511946,95396.0,95386.0,0.0881515]
[1735443309003,0.01644863,95397.0,95386.0,0.0881515]
[1735443309246,2.003852,95396.0,95386.0,0.0881515]
[1735443310794,2.003852,95396.0,95386.0,0.0831515]
[1735443311121,2.003852,95396.0,95386.0,0.0881515]
[1735443311406,2.003852,95396.0,95386.0,0.0831515]
[1735443311812,2.003852,95396.0,95386.0,0.0881515]
[1735443313338,2.003852,95398.0,95386.0,0.0881515]
[1735443313750,2.10783832,95398.0,95386.0,0.0881515]
[1735443313962,2.003852,95397.0,95386.0,0.0881515]
[1735443314418,2.003852,95398.0,95386.0,0.0881515]
[1735443315044,2.003852,95398.0,95386.0,0.0831515]
[1735443315405,2.003852,95398.0,95386.0,0.0871515]
[1735443317390,0.01644867,95396.0,95386.0,0.0871515]
[1735443317608,1.775079,95395.0,95386.0,0.0871515]
[1735443317806,0.522216,95394.0,95387.0,0.0478]
[1735443318021,0.48859,95395.0,95388.0,0.0824]
[1735443318907,0.179589,95395.0,95388.0,0.0824]
[1735443319135,0.177589,95395.0,95390.0,0.0824]
[1735443321770,0.177589,95395.0,95390.0,0.0884]
[1735443322176,0.01644867,95396.0,95390.0,0.0884]
[1735443323035,8.54e-05,95398.0,95390.0,0.0884]
[1735443323367,1.832972,95397.0,95390.0,0.0884]
[1735443323578,1.832972,95397.0,95390.0,0.0824]
[1735443323788,1.832972,95397.0,95390.0,0.0884]
[1735443324025,1.832972,95397.0,95390.0,0.0824]
[1735443324420,1.832972,95397.0,95390.0,0.0874]
[1735443324635,1.832972,95397.0,95390.0,0.0824]
[1735443325146,1.832972,95397.0,95390.0,0.0874]
[1735443326809,8.54e-05,95398.0,95390.0,0.0874]
[1735443327127,1.832972,95397.0,95390.0,0.0874]
[1735443327531,0.01644845,95396.0,95390.0,0.0874]
[1735443327891,0.01644845,95396.0,95390.0,0.0824]
[1735443328102,0.01644845,95396.0,95390.0,0.0874]
[1735443328305,0.01644845,95396.0,95390.0,0.0824]
[1735443328625,0.01644845,95396.0,95390.0,0.0874]
[1735443329732,0.01644845,95396.0,95390.0,0.0824]
[1735443330130,0.01644845,95396.0,95390.0,0.0884]
[1735443332945,8.54e-05,95398.0,95390.0,0.0884]
[1735443333181,1.82084,95397.0,95390.0,0.0884]
[1735443333730,0.00848685,95396.0,95390.0,0.0884]
[1735443333959,0.00848685,95396.0,95390.0,0.0824]
[1735443334316,0.00848685,95396.0,95390.0,0.0874]
[1735443334545,8.54e-05,95398.0,95390.0,0.0874]
[1735443334666,1.819492,95397.0,95390.0,0.0874]
[1735443334861,1.819492,95397.0,95390.0,0.0824]
[1735443335098,0.00849253,95396.0,95390.0,0.0824]
[1735443335532,8.54e-05,95398.0,95390.0,0.0824]
[1735443335685,1.81643,95397.0,95390.0,0.0824]
[1735443335892,0.00848685,95396.0,95390.0,0.0824]
[1735443336117,0.02493535,95396.0,95390.0,0.0884]
[1735443336314,0.0164485,95396.0,95390.0,0.0884]
[1735443336879,0.0164485,95396.0,95390.0,0.0824]
[1735443337322,0.0164485,95396.0,95390.0,0.0874]
[1735443337568,0.0164485,95396.0,95390.0,0.0824]
[1735443337962,0.0164485,95396.0,95390.0,0.0884]
[1735443343207,8.54e-05,95398.0,95390.0,0.0884]
[1735443343401,1.78584,95397.0,95390.0,0.0884]
[1735443343601,1.78584,95397.0,95390.0,0.0885708]
[1735443343853,0.00857565,95396.0,95390.0,0.0885708]
[1735443344276,0.00857565,95396.0,95390.0,0.0825708]
[1735443344478,8.54e-05,95396.0,95390.0,0.0825708]
[1735443345403,8.54e-05,95396.0,95390.0,0.0875708]
[1735443345578,8.54e-05,95396.0,95390.0,0.0825708]
[1735443346445,8.54e-05,95396.0,95390.0,0.0885708]
[1735443347518,0.01644774,95395.0,95390.0,0.0885708]
[1735443348694,0.01644774,95395.0,95390.0,0.0825708]
[1735443349106,0.01644774,95395.0,95390.0,0.0885708]
[1735443353024,8.54e-05,95396.0,95390.0,0.0885708]
[1735443353913,8.54e-05,95396.0,95390.0,0.0825708]
[1735443354594,0.23931865,95410.0,95390.0,0.0825708]
[1735443354796,2.003852,95409.0,95390.0,0.0885708]
[1735443354994,2.01235277,95409.0,95390.0,0.0885708]
[1735443355196,2.003852,95408.0,95390.0,0.0885708]
[1735443355620,8.54e-05,95396.0,95390.0,0.0885708]
[1735443356024,8.54e-05,95396.0,95390.0,0.0825708]
[1735443356705,8.54e-05,95396.0,95390.0,0.0885708]
[1735443357458,0.01644772,95395.0,95390.0,0.0885708]
[1735443359671,0.01644772,95395.0,95390.0,0.0825708]
[1735443359823,0.01644772,95395.0,95390.0,0.0885708]
[1735443362996,8.54e-05,95396.0,95390.0,0.0885708]
[1735443364056,8.54e-05,95396.0,95390.0,0.0825708]
[1735443364579,8.54e-05,95396.0,95390.0,0.0885708]
[1735443367466,0.01644776,95395.0,95390.0,0.0885708]
[1735443370183,0.01644776,95395.0,95390.0,0.0825708]
[1735443370386,0.01644776,95395.0,95390.0,0.0885708]
[1735443374278,0.26976963,95410.0,95390.0,0.0885708]
[1735443374479,2.003852,95409.0,95390.0,0.0885708]
[1735443374645,2.01235329,95409.0,95390.0,0.0885708]
[1735443374850,2.003852,95408.0,95390.0,0.0885708]
[1735443375211,0.00849968,95407.0,95390.0,0.0885708]
[1735443375384,2.003852,95406.0,95390.0,0.0885708]
[1735443375812,0.00849806,95405.0,95390.0,0.0885708]
[1735443375934,1.900829,95404.0,95390.0,0.0885708]
[1735443376134,0.02494488,95403.0,95390.0,0.0825708]
[1735443376338,1.807467,95402.0,95390.0,0.0825708]
[1735443376694,1.83295982,95401.0,95390.0,0.0825708]
[1735443376904,1.803421,95400.0,95390.0,0.0825708]
[1735443377051,1.583248,95399.0,95390.0,0.0845708]
[1735443377420,0.0084932,95399.0,95390.0,0.0825708]
[1735443377597,1.574599,95398.0,95390.0,0.0855708]
[1735443377802,1.574599,95398.0,95390.0,0.0825708]
[1735443377935,0.00849158,95397.0,95390.0,0.0825708]
[1735443378138,0.00849158,95397.0,95390.0,0.0875708]
[1735443378338,1.565149,95396.0,95390.0,0.0875708]
[1735443378538,0.00848996,95395.0,95390.0,0.0875708]
[1735443378741,0.01644844,95403.0,95390.0,0.0875708]
[1735443378939,1.807578,95402.0,95390.0,0.0875708]
[1735443379182,0.00849482,95401.0,95390.0,0.0875708]
[1735443379389,1.82177,95400.0,95390.0,0.0825708]
[1735443379590,1.82177,95400.0,95390.0,0.0875708]
[1735443379787,0.0084932,95399.0,95390.0,0.0875708]
[1735443379989,1.573904,95398.0,95390.0,0.0825708]
[1735443380205,1.573904,95398.0,95390.0,0.0855708]
[1735443380426,0.00849158,95397.0,95390.0,0.0855708]
[1735443380625,1.567075,95396.0,95390.0,0.0825708]
[1735443381036,0.00848996,95395.0,95390.0,0.0865708]
[1735443381244,0.00848996,95395.0,95390.0,0.0825708]
[1735443381631,0.01644844,95403.0,95390.0,0.0825708]
[1735443381838,1.718922,95402.0,95390.0,0.0825708]
[1735443382233,0.00849482,95401.0,95390.0,0.0825708]
[1735443382563,1.711698,95400.0,95390.0,0.0875708]
[1735443382706,1.711698,95400.0,95390.0,0.0825708]
[1735443382940,0.0084932,95399.0,95390.0,0.0855708]
[1735443383142,1.5886002,95399.0,95390.0,0.0855708]
[1735443383345,1.5886002,95399.0,95390.0,0.0825708]
[1735443383543,1.571458,95398.0,95390.0,0.0865708]
[1735443383740,0.00849158,95397.0,95390.0,0.0865708]
[1735443383995,0.00849158,95397.0,95390.0,0.0825708]
[1735443384162,0.00849158,95397.0,95390.0,0.0875708]
[1735443384163,1.564666,95396.0,95390.0,0.0875708]
[1735443384347,0.00848996,95395.0,95390.0,0.0825708]
[1735443384778,8.54e-05,95410.0,95390.0,0.0825708]
[1735443384974,2.003852,95409.0,95390.0,0.0825708]
[1735443385174,0.1124868,95408.0,95390.0,0.0825708]
[1735443385371,1.297744,95407.0,95392.0,0.0817]
[1735443385636,8.54e-05,95410.0,95393.0,0.10398632]
[1735443385637,0.0164474,95405.0,95393.0,0.10398632]
[1735443386092,0.01062833,95404.0,95396.0,0.1272]
[1735443386325,0.01062833,95404.0,95397.0,0.12712203]
[1735443386514,0.0164474,95405.0,95399.0,0.1272]
[1735443386679,0.0164474,95405.0,95401.0,0.1272]
[1735443387491,0.0164474,95405.0,95402.0,0.0817]
[1735443389513,0.0164474,95405.0,95402.0,0.0907]
[1735443390570,0.0164474,95405.0,95402.0,0.0927]
[1735443391883,0.144279,95404.0,95402.0,0.011]
[1735443392094,0.01608118,95403.0,95402.0,0.011]
[1735443392297,2.03172819,95403.0,95402.0,0.011]
[1735443392656,2.03172819,95403.0,95402.0,0.009]
[1735443392854,2.03172819,95403.0,95402.0,0.003]
[1735443393057,2.03172819,95403.0,95402.0,0.012]
[1735443393260,2.03172819,95403.0,95402.0,0.003]
[1735443393465,2.03172819,95403.0,95390.0,0.0456708]
[1735443393683,1.59086132,95402.0,95390.0,0.0456708]
[1735443393888,1.681861,95401.0,95390.0,0.0456708]
[1735443394336,0.11578352,95400.0,95390.0,0.0456708]
[1735443394527,2.11963552,95400.0,95390.0,0.0001708]
[1735443394696,2.003852,95399.0,95390.0,0.0001708]
[1735443394900,0.1630246,95398.0,95390.0,0.0001708]
[1735443395124,2.003852,95397.0,95390.0,0.0001708]
[1735443395326,2.10783832,95397.0,95390.0,0.0011708]
[1735443395577,2.01559599,95396.0,95390.0,0.0011708]
[1735443395840,2.003852,95395.0,95390.0,0.0011708]
[1735443396059,0.01608118,95394.0,95390.0,0.0001708]
[1735443396365,2.003852,95393.0,95390.0,0.0031708]
[1735443396530,2.01559861,95393.0,95390.0,0.0031708]
[1735443396708,2.003852,95392.0,95390.0,0.0001708]
[1735443397114,0.11573031,95391.0,95390.0,0.0001708]
[1735443397345,2.22356863,95391.0,95390.0,0.0001708]
[1735443397920,2.22356863,95391.0,95390.0,0.0041708]
[1735443398173,2.22356863,95391.0,95390.0,0.0001708]
[1735443398374,2.22356863,95391.0,95390.0,0.0061708]
[1735443398775,0.21971663,95391.0,95390.0,0.0061708]
[1735443398992,2.11958231,95391.0,95390.0,0.0061708]
[1735443399201,0.11573031,95391.0,95390.0,0.0061708]
[1735443399586,2.11958231,95391.0,95390.0,0.0061708]
[1735443411704,2.13603156,95391.0,95390.0,0.0061708]
[1735443412467,2.13703156,95391.0,95390.0,0.0061708]
[1735443412677,2.24101788,95391.0,95390.0,0.0061708]
[1735443413499,2.24101788,95391.0,95390.0,0.0001708]
[1735443413878,2.24101788,95391.0,95390.0,0.0021708]
[1735443418868,0.23716588,95391.0,95390.0,0.0021708]
[1735443419028,2.13703156,95391.0,95390.0,0.0021708]
[1735443423144,2.12058231,95391.0,95390.0,0.0021708]
[1735443427541,2.13703252,95391.0,95390.0,0.0021708]
[1735443441531,2.23703252,95391.0,95390.0,0.0021708]
[1735443441678,2.27678231,95391.0,95390.0,0.0021708]
[1735443441873,2.38076863,95391.0,95390.0,0.0021708]
[1735443442108,2.39721936,95391.0,95390.0,0.0001708]
[1735443442334,2.39821936,95391.0,95390.0,0.0001708]
[1735443442839,2.38076863,95391.0,95390.0,0.0001708]
[1735443443138,2.6666282,95391.0,95390.0,0.0001708]
[1735443443452,2.6646282,95391.0,95390.0,0.0001708]
[1735443443658,2.6636282,95391.0,95390.0,0.0001708]
[1735443443834,2.6696282,95391.0,95390.0,0.0001708]
[1735443444246,2.38576863,95391.0,95390.0,0.0001708]
[1735443445941,2.40222025,95391.0,95390.0,0.0001708]
[1735443446635,2.3403536,95391.0,95390.0,0.0001708]
[1735443447965,2.11844362,95391.0,95390.0,0.0001708]
[1735443448157,2.11675394,95391.0,95390.0,0.0001708]
[1735443448382,2.35312636,95391.0,95390.0,0.0001708]
[1735443449263,2.11675394,95391.0,95390.0,0.0001708]
[1735443451043,2.13320556,95391.0,95390.0,0.0001708]
[1735443452297,2.11675394,95391.0,95390.0,0.0001708]
[1735443452845,0.27469594,95391.0,95390.0,0.0001708]
[1735443453259,0.29620026,95391.0,95390.0,0.0001708]
[1735443453555,2.23825826,95391.0,95390.0,0.0001708]
[1735443453759,2.24125826,95391.0,95390.0,0.0001708]
[1735443454038,2.23720726,95391.0,95390.0,0.0001708]
[1735443454585,2.23820726,95391.0,95390.0,0.0011708]
[1735443455015,2.23520726,95391.0,95390.0,0.0011708]
[1735443455216,2.24120726,95391.0,95390.0,0.0011708]
[1735443458943,2.24129266,95391.0,95390.0,0.0011708]
[1735443459542,2.76545266,95391.0,95390.0,0.0011708]
[1735443462366,2.74899934,95391.0,95390.0,0.0011708]
[1735443464809,2.74532284,95391.0,95390.0,0.0011708]
[1735443465378,2.76177639,95391.0,95390.0,0.0011708]
[1735443466547,2.56936102,95391.0,95390.0,0.0011708]
[1735443469590,2.68016102,95391.0,95390.0,0.0011708]
[1735443470999,2.7833844,95391.0,95390.0,0.0011708]
[1735443471284,2.68016102,95391.0,95390.0,0.0011708]
[1735443471667,2.67416102,95391.0,95390.0,0.0011708]
[1735443471891,2.68116102,95391.0,95390.0,0.0021708]
[1735443472737,2.67916102,95391.0,95390.0,0.0011708]
[1735443473080,2.68816102,95391.0,95390.0,0.0021708]
[1735443473868,2.7913844,95391.0,95390.0,0.0021708]
[1735443474060,2.70746102,95391.0,95390.0,0.0021708]
[1735443474419,0.15052946,95387.0,95386.0,0.0001708]
[1735443474617,2.64784704,95387.0,95386.0,0.0001708]
[1735443474843,2.65572841,95387.0,95386.0,0.0001708]
[1735443475039,0.71367041,95387.0,95386.0,0.0001708]
[1735443475208,2.65572841,95387.0,95386.0,0.0001708]
[1735443475412,2.67282841,95387.0,95386.0,0.0001708]
[1735443476802,2.69082841,95387.0,95386.0,0.0001708]
[1735443477951,2.81050819,95387.0,95386.0,0.0001708]
[1735443478748,0.03972946,95354.0,95349.0,0.11171234]
[1735443478949,0.03211641,95350.0,95349.0,0.11171234]
[1735443479186,2.50620837,95350.0,95349.0,0.11171234]
[1735443479360,2.52266657,95350.0,95349.0,0.11171234]
[1735443479876,2.52266657,95350.0,95349.0,0.08370819]
[1735443480357,2.52666657,95350.0,95349.0,0.08370819]
[1735443480846,2.56639603,95350.0,95349.0,0.00050819]
[1735443481592,2.57039603,95350.0,95349.0,0.00050819]
[1735443482096,2.67039603,95350.0,95349.0,0.00067899]
[1735443482464,2.66639603,95350.0,95349.0,0.00067899]
[1735443482666,2.66239603,95350.0,95349.0,0.00067899]
[1735443482865,2.65193783,95350.0,95349.0,0.00067899]
[1735443483586,2.65493783,95350.0,95349.0,0.00067899]
[1735443483789,2.65993783,95350.0,95349.0,0.00067899]
[1735443485281,2.77073783,95350.0,95349.0,0.00067899]
[1735443485580,2.75673783,95350.0,95349.0,0.00067899]
[1735443486007,2.78819821,95350.0,95349.0,0.00067899]
[1735443486207,2.89142159,95350.0,95349.0,0.00067899]
[1735443486405,0.03972946,95343.0,95342.0,0.05320055]
[1735443486585,2.53927359,95343.0,95342.0,0.05329111]
[1735443486786,2.54703141,95343.0,95342.0,0.05329111]
[1735443487565,2.55203141,95343.0,95342.0,0.05329111]
[1735443488686,2.56103141,95343.0,95342.0,0.05329111]
[1735443494014,2.56103141,95343.0,95342.0,0.05337661]
[1735443499023,2.57749194,95343.0,95342.0,0.05337661]
[1735443501654,2.31949517,95343.0,95342.0,0.05337661]
[1735443502062,2.31949517,95343.0,95342.0,0.04946015]
[1735443503816,2.06271583,95343.0,95342.0,0.04946015]
[1735443505344,2.05771583,95343.0,95342.0,0.04946015]
[1735443505548,2.05371583,95343.0,95342.0,0.04946015]
[1735443505744,2.06271583,95343.0,95342.0,0.04946015]
[1735443506150,2.05771583,95343.0,95342.0,0.04946015]
[1735443506385,2.06571583,95343.0,95342.0,0.04946015]
[1735443507746,2.16893921,95343.0,95342.0,0.04946015]
[1735443507946,1.93468396,95343.0,95342.0,0.04946015]
[1735443508279,1.93468447,95343.0,95342.0,0.04946015]
[1735443508629,2.45911447,95343.0,95342.0,0.04946015]
[1735443510942,2.475575,95343.0,95342.0,0.04946015]
[1735443512557,2.37235162,95343.0,95342.0,0.04946015]
[1735443513356,2.35589109,95343.0,95342.0,0.04946015]
[1735443516308,2.37235094,95343.0,95342.0,0.04946015]
[1735443517331,2.37252194,95343.0,95342.0,0.04946015]
[1735443517500,2.47574532,95343.0,95342.0,0.04946015]
[1735443519212,2.47574532,95343.0,95342.0,0.04629305]
[1735443523437,2.37252194,95343.0,95342.0,0.04629305]
[1735443524017,2.35606209,95343.0,95342.0,0.04629305]
[1735443527227,2.37252194,95343.0,95342.0,0.04629305]
[1735443530521,0.56569294,95343.0,95342.0,0.04629305]
[1735443530727,2.37252194,95343.0,95342.0,0.04629305]
[1735443532413,2.35606209,95343.0,95342.0,0.04629305]
[1735443533777,2.45928547,95343.0,95342.0,0.04629305]
[1735443535535,2.47574558,95343.0,95342.0,0.04629305]
[1735443536782,2.45928547,95343.0,95342.0,0.04629305]
[1735443538677,2.35606209,95343.0,95342.0,0.04629305]
[1735443539901,2.3725222,95343.0,95342.0,0.04629305]
[1735443542461,2.35606209,95343.0,95342.0,0.04629305]
[1735443543699,2.45928547,95343.0,95342.0,0.04629305]
[1735443545438,2.47574558,95343.0,95342.0,0.04629305]
[1735443545618,2.47574558,95343.0,95342.0,0.00017606]
[1735443545863,2.3725222,95343.0,95342.0,0.00017606]
[1735443546207,2.47574558,95343.0,95342.0,0.00017606]
[1735443546611,2.3695222,95343.0,95342.0,0.00017606]
[1735443547184,2.69271822,95343.0,95342.0,0.00017606]
[1735443547928,2.3745222,95343.0,95342.0,0.00017606]
[1735443548133,2.3605222,95343.0,95342.0,0.00017606]
[1735443548533,2.3695222,95343.0,95342.0,0.00017606]
[1735443551207,2.3695222,95343.0,95326.0,0.07112648]
[1735443551382,2.3695222,95343.0,95326.0,0.07127899]
[1735443551383,1.806829,95342.0,95326.0,0.07127899]
[1735443551585,0.00630338,95341.0,95326.0,0.07127899]
[1735443551785,1.806829,95340.0,95326.0,0.07127899]
[1735443551993,0.00630068,95339.0,95326.0,0.07127899]
[1735443552207,0.53073068,95339.0,95326.0,0.07127899]
[1735443552387,1.806829,95338.0,95326.0,0.07127899]
[1735443552588,0.00629798,95337.0,95326.0,0.07127899]
[1735443552834,0.28376751,95333.0,95326.0,0.07127899]
[1735443553070,1.81312022,95332.0,95326.0,0.07127899]
[1735443553225,1.806829,95331.0,95326.0,0.07127899]
[1735443553403,0.00628852,95330.0,95326.0,0.07127899]
[1735443553603,1.806829,95329.0,95326.0,0.07127899]
[1735443553809,0.00628581,95328.0,95326.0,0.07127899]
[1735443554035,1.806829,95327.0,95326.0,0.07127899]
[1735443554244,2.33754346,95327.0,95326.0,0.07127899]
[1735443555618,2.33954346,95327.0,95326.0,0.07127899]
[1735443556427,2.34154346,95327.0,95326.0,0.07127899]
[1735443559264,1.72774646,95327.0,95326.0,0.11777899]
[1735443560228,1.74420768,95327.0,95326.0,0.11777899]
[1735443560652,1.71867568,95327.0,95326.0,0.11777899]
[1735443560855,1.69713868,95327.0,95326.0,0.11777899]
[1735443561258,1.18674868,95327.0,95326.0,0.11777899]
[1735443561627,0.55117568,95327.0,95326.0,0.11777899]
[1735443561896,1.49915968,95327.0,95326.0,0.11777899]
[1735443562112,1.69025668,95327.0,95326.0,0.11777899]
[1735443562327,1.68825668,95327.0,95326.0,0.11777899]
[1735443562546,1.05188368,95327.0,95326.0,0.11777899]
[1735443563623,1.03442246,95327.0,95326.0,0.11777899]
[1735443564323,1.03342246,95327.0,95326.0,0.11777899]
[1735443564567,1.03342246,95327.0,95326.0,0.11877899]
[1735443564784,1.03342246,95327.0,95326.0,0.11786449]
[1735443564974,1.03342246,95327.0,95326.0,0.11886449]
[1735443565510,1.03342246,95327.0,95326.0,0.11786449]
[1735443565650,1.03342246,95327.0,95326.0,0.11986449]
[1735443566312,0.84324247,95327.0,95326.0,0.11986449]
[1735443566651,0.85970363,95327.0,95326.0,0.11986449]
[1735443570601,0.85970363,95327.0,95326.0,0.11886449]
[1735443570729,0.85970363,95327.0,95326.0,0.11986449]
[1735443570948,0.85970363,95327.0,95326.0,0.11886449]
[1735443572409,0.85970363,95327.0,95326.0,0.07236449]
[1735443572608,0.85970363,95327.0,95326.0,0.00123801]
[1735443573362,0.85970363,95327.0,95326.0,0.00023801]
[1735443573813,0.86370363,95327.0,95326.0,0.00023801]
[1735443574389,0.87070363,95327.0,95326.0,0.00023801]
[1735443574739,0.86770363,95327.0,95326.0,0.00023801]
[1735443575090,0.87070363,95327.0,95326.0,0.00023801]
[1735443576734,0.87087463,95327.0,95326.0,0.00023801]
[1735443581402,0.87087463,95327.0,95326.0,0.08313801]
[1735443582003,0.85441347,95327.0,95326.0,0.08313801]
[1735443582414,0.87087523,95327.0,95326.0,0.08313801]
[1735443584794,1.10733987,95327.0,95326.0,0.08313801]
[1735443585487,0.89497214,95327.0,95326.0,0.08313801]
[1735443585751,0.6585075,95327.0,95326.0,0.08313801]
[1735443586439,0.64204574,95327.0,95326.0,0.08313801]
[1735443587354,0.64204574,95327.0,95326.0,0.06667801]
[1735443588419,0.6585075,95327.0,95326.0,0.06667801]
[1735443588622,0.6585075,95327.0,95326.0,0.06676351]
[1735443589318,0.6585075,95327.0,95326.0,8.55e-05]
[1735443592588,1.9626285,95327.0,95326.0,8.55e-05]
[1735443596747,1.94616674,95327.0,95326.0,8.55e-05]
[1735443598098,1.96262949,95327.0,95326.0,8.55e-05]
[1735443613658,2.246397,95327.0,95326.0,8.55e-05]
[1735443614663,1.96262949,95327.0,95326.0,8.55e-05]
[1735443618536,0.15580049,95327.0,95326.0,8.55e-05]
[1735443619087,1.96262949,95327.0,95326.0,8.55e-05]
[1735443620787,1.94616674,95327.0,95326.0,8.55e-05]
[1735443624235,1.689375,95327.0,95326.0,8.55e-05]
[1735443624436,1.69422587,95327.0,95326.0,8.55e-05]
[1735443625209,2.21873587,95327.0,95326.0,8.55e-05]
[1735443626157,2.23519937,95327.0,95326.0,8.55e-05]
[1735443626763,2.21873587,95327.0,95326.0,8.55e-05]
[1735443629821,2.23519937,95327.0,95326.0,8.55e-05]
[1735443631771,2.24068791,95327.0,95326.0,8.55e-05]
[1735443634179,2.24077331,95327.0,95326.0,8.55e-05]
[1735443637591,0.55139831,95327.0,95326.0,8.55e-05]
[1735443637801,2.24077331,95327.0,95326.0,8.55e-05]
[1735443642032,0.0008995,95326.0,95317.0,0.0829]
[1735443642171,2.2147845,95326.0,95317.0,0.08298]
[1735443642378,1.699712,95325.0,95317.0,0.08298]
[1735443642585,1.689375,95324.0,95317.0,0.08298]
[1735443642786,2.213885,95324.0,95317.0,0.08298]
[1735443642986,1.689375,95323.0,95317.0,0.08298]
[1735443643199,2.224222,95323.0,95317.0,0.08298]
[1735443643398,1.689375,95322.0,95317.0,0.08298]
[1735443643621,2.213885,95322.0,95317.0,0.08298]
[1735443643836,1.689375,95321.0,95317.0,0.08298]
[1735443644040,2.224222,95321.0,95317.0,0.08298]
[1735443644235,1.689375,95320.0,95317.0,0.08298]
[1735443644437,2.213885,95320.0,95317.0,0.08298]
[1735443644782,1.699712,95319.0,95317.0,0.08298]
[1735443644958,1.689375,95318.0,95317.0,0.08298]
[1735443645160,2.213885,95318.0,95317.0,0.08298]
[1735443645342,2.22422329,95318.0,95317.0,0.08298]
[1735443645789,2.22422329,95318.0,95317.0,0.0830654]
[1735443646425,2.22422329,95318.0,95317.0,0.0840654]
[1735443648479,2.22522329,95318.0,95317.0,0.0840654]
[1735443648679,2.22522329,95318.0,95317.0,0.0830654]
[1735443649093,2.22622329,95318.0,95317.0,0.0830654]
[1735443649551,2.24268677,95318.0,95317.0,0.0830654]
[1735443653681,2.01657977,95318.0,95317.0,0.0830654]
[1735443659122,2.00011629,95318.0,95317.0,0.0830654]
[1735443660384,0.53684829,95318.0,95317.0,0.0830654]
[1735443661245,2.00011629,95318.0,95317.0,0.0830654]
[1735443662350,2.01657866,95318.0,95317.0,0.0830654]
[1735443662818,2.01557866,95318.0,95317.0,0.0830654]
[1735443663069,2.01657866,95318.0,95317.0,0.0830654]
[1735443663671,2.01557866,95318.0,95317.0,0.0830654]
[1735443664062,2.01657866,95318.0,95317.0,0.0830654]
[1735443667940,1.75473066,95318.0,95317.0,0.1320654]
[1735443668925,1.47589666,95318.0,95317.0,0.14531463]
[1735443669309,1.45943429,95318.0,95317.0,0.14531463]
[1735443669486,1.45960509,95318.0,95317.0,0.14531463]
[1735443669893,1.45760509,95318.0,95317.0,0.14531463]
[1735443670365,1.45760509,95318.0,95317.0,0.14631463]
[1735443670624,1.45760509,95318.0,95317.0,0.1330654]
[1735443670879,1.45760509,95318.0,95317.0,0.1320654]
[1735443671345,1.45760509,95318.0,95317.0,0.1350654]
[1735443671802,1.93596709,95318.0,95317.0,0.1320654]
[1735443672009,1.92424009,95318.0,95317.0,0.12782349]
[1735443672143,1.94070167,95318.0,95317.0,0.12782349]
[1735443672349,1.87863867,95318.0,95317.0,0.13082349]
[1735443675662,1.86217709,95318.0,95317.0,0.13082349]
[1735443679069,1.87863933,95318.0,95317.0,0.13082349]
[1735443682382,2.01474933,95318.0,95317.0,0.13082349]
[1735443684019,2.01149887,95318.0,95317.0,0.13082349]
[1735443690709,1.78688818,95318.0,95317.0,0.13082349]
[1735443690925,1.78688818,95318.0,95317.0,0.12982349]
[1735443691116,1.78688818,95318.0,95317.0,0.12682349]
[1735443691330,1.78688818,95318.0,95317.0,0.12782349]
[1735443691491,1.78688818,95318.0,95317.0,0.13082349]
[1735443691691,1.78688818,95318.0,95317.0,0.12682349]
[1735443691890,1.78688818,95318.0,95317.0,0.12882349]
[1735443692129,1.78788818,95318.0,95317.0,0.13482349]
[1735443706259,1.77142594,95318.0,95317.0,0.13482349]
[1735443709601,1.78788818,95318.0,95317.0,0.13482349]
[1735443712266,1.36820718,95318.0,95317.0,0.13482349]
[1735443716256,1.35174494,95318.0,95317.0,0.13482349]
[1735443718759,0.30815794,95318.0,95317.0,0.13482349]
[1735443719080,1.53998894,95318.0,95317.0,0.13482349]
[1735443719224,1.56813105,95318.0,95317.0,0.13482349]
[1735443719422,1.51714305,95318.0,95317.0,0.13482349]
[1735443726407,1.50068094,95318.0,95317.0,0.13482349]
[1735443727192,1.39024094,95318.0,95317.0,0.13482349]
[1735443727394,1.33426594,95318.0,95317.0,0.13482349]
[1735443729621,1.35072811,95318.0,95317.0,0.13482349]
[1735443732700,1.23802011,95318.0,95317.0,0.13482349]
[1735443743205,1.22155794,95318.0,95317.0,0.13482349]
[1735443746208,1.23801908,95318.0,95317.0,0.13482349]
[1735443747490,1.22155794,95318.0,95317.0,0.13482349]
[1735443750532,1.23801995,95318.0,95317.0,0.13482349]
[1735443756299,1.22155794,95318.0,95317.0,0.13482349]
[1735443756681,1.4583146,95318.0,95317.0,0.13482349]
[1735443757420,1.22155794,95318.0,95317.0,0.13482349]
[1735443759705,1.2380201,95318.0,95317.0,0.13482349]
[1735443762659,0.97421697,95318.0,95317.0,0.13482349]
[1735443762878,0.95775481,95318.0,95317.0,0.13482349]
[1735443763417,0.97421697,95318.0,95317.0,0.13482349]
[1735443772067,0.7520532,95318.0,95317.0,0.13482349]
[1735443772276,0.75794895,95318.0,95317.0,0.13482349]
[1735443781567,0.75803435,95318.0,95317.0,0.13482349]
[1735443782963,0.74157219,95318.0,95317.0,0.13482349]
[1735443783739,0.75803392,95318.0,95317.0,0.13482349]
[1735443784554,0.75803392,95318.0,95317.0,0.14834853]
[1735443784680,0.13259888,95318.0,95317.0,0.14939759]
[1735443784888,0.13259888,95318.0,95317.0,0.13587255]
[1735443790030,0.49369288,95318.0,95317.0,0.13587255]
[1735443791181,0.31156614,95318.0,95317.0,0.13587255]
[1735443791560,0.5,95323.0,95318.0,0.0788]
[1735443791561,0.610909,95322.0,95318.0,0.0788]
[1735443791694,0.610909,95322.0,95319.0,0.00104899]
[1735443791899,0.764166,95321.0,95320.0,0.0788]
[1735443793334,0.764166,95321.0,95320.0,0.0828]
[1735443794272,0.764166,95321.0,95320.0,0.0838]
[1735443795869,0.7806274,95321.0,95320.0,0.0838]
[1735443798639,0.7223194,95321.0,95320.0,0.0838]
[1735443803471,0.0164614,95321.0,95320.0,0.0838]
[1735443803674,0.0164614,95321.0,95320.0,0.08484897]
[1735443803881,1.1091184,95321.0,95320.0,0.08484897]
[1735443804075,1.1059654,95321.0,95320.0,0.0838]
[1735443804441,0.8510764,95321.0,95320.0,0.0838]
[1735443805587,0.8511618,95321.0,95320.0,0.0838]